fUSD/lending_fUSD_20240423
["ID","MTS","AMOUNT","RATE_DAILY","PERIOD"]
[323330770,1713901843776,-500.0,0.00012876,2]
[323330772,1713901843785,-500.0,0.00012876,2]
[323330774,1713901843794,-500.0,0.00012876,2]
[323330776,1713901843803,-528.87,0.00012876,2]
[323330778,1713901843813,-500.0,0.00012876,2]
[323330780,1713901843822,-500.0,0.00012876,2]
[323330782,1713901843831,-500.0,0.00012876,2]
[323330784,1713901843841,-620.1,0.00012876,2]
[323330786,1713901843849,-500.0,0.00012876,2]
[323330788,1713901843858,-500.0,0.00012876,2]
[323330790,1713901843867,-500.0,0.00012876,2]
[323330792,1713901843878,-460.23540016,0.00012876,2]
[323330793,1713901843887,-500.0,0.00012876,2]
[323330795,1713901843897,-500.0,0.00012876,2]
[323330797,1713901843906,-500.0,0.00012876,2]
[323330800,1713901843915,-500.0,0.00012876,2]
[323330802,1713901843926,-500.0,0.00012876,2]
[323330804,1713901843935,-500.0,0.00012876,2]
[323330806,1713901843945,-150.0,0.00012876,2]
[323330808,1713901843954,-500.0,0.00012876,2]
[323330809,1713901843963,-500.0,0.00012876,2]
[323330811,1713901843973,-500.0,0.00012876,2]
[323330813,1713901843982,-500.0,0.00012876,2]
[323330816,1713901843991,-500.0,0.00012876,2]
[323330817,1713901844003,-566.44,0.00012876,2]
[323330819,1713901844012,-500.0,0.00012876,2]
[323330821,1713901844022,-500.0,0.00012876,2]
[323330824,1713901844031,-500.0,0.00012876,2]
[323330825,1713901844040,-500.0,0.00012876,2]
[323330828,1713901844050,-500.0,0.00012876,2]
[323330830,1713901844059,-500.0,0.00012876,2]
[323330832,1713901844068,-500.0,0.00012876,2]
[323330834,1713901844077,-500.0,0.00012876,2]
[323330836,1713901844087,-500.0,0.00012876,2]
[323330838,1713901844096,-515.55,0.00012876,2]
[323330840,1713901844105,-500.0,0.00012876,2]
[323330842,1713901844114,-500.0,0.00012876,2]
[323330843,1713901844123,-500.0,0.00012876,2]
[323330846,1713901844134,-500.0,0.00012876,2]
[323330848,1713901844143,-500.0,0.00012876,2]
[323330849,1713901844152,-500.0,0.00012876,2]
[323330851,1713901844161,-500.0,0.00012876,2]
[323330853,1713901844170,-530.52,0.00012876,2]
[323330855,1713901844179,-504.92681163,0.00012876,2]
[323330857,1713901844189,-500.0,0.00012876,2]
[323330859,1713901844198,-500.0,0.00012876,2]
[323330861,1713901844207,-507.43989857,0.00012876,2]
[323330863,1713901844216,-630.94578865,0.00012876,2]
[323330865,1713901844225,-500.0,0.00012876,2]
[323330867,1713901844235,-500.0,0.00012876,2]
[323330869,1713901844244,-500.0,0.00012876,2]
[323330871,1713901844254,-500.0,0.00012876,2]
[323330873,1713901844263,-172.94322661,0.00012876,2]
[323330875,1713901844272,-340.70183336,0.00012876,2]
[323330877,1713901844281,-500.0,0.00012876,2]
[323330879,1713901844290,-500.0,0.00012876,2]
[323330881,1713901844299,-500.0,0.00012876,2]
[323330883,1713901844308,-464.96,0.00012876,2]
[323330885,1713901844317,-500.0,0.00012876,2]
[323330887,1713901844326,-500.0,0.00012876,2]
[323330889,1713901844335,-505.43839281,0.00012876,2]
[323330891,1713901844345,-500.0,0.00012876,2]
[323330893,1713901844354,-1570.78,0.00012876,2]
[323330895,1713901844363,-500.0,0.00012876,2]
[323330897,1713901844372,-500.0,0.00012876,2]
[323330899,1713901844382,-500.0,0.00012876,2]
[323330901,1713901844391,-500.0,0.00012876,2]
[323330903,1713901844400,-170.40447882,0.00012876,2]
[323330905,1713901844411,-570.07,0.00012876,2]
[323330907,1713901844420,-500.0,0.00012876,2]
[323330909,1713901844429,-613.72,0.00012876,2]
[323330911,1713901844438,-500.0,0.00012876,2]
[323330913,1713901844447,-500.0,0.00012876,2]
[323330916,1713901844457,-585.73843904,0.00012876,2]
[323330918,1713901844466,-532.95129536,0.00012876,2]
[323330920,1713901844475,-500.0,0.00012876,2]
[323330922,1713901844484,-500.0,0.00012876,2]
[323330924,1713901844493,-500.0,0.00012876,2]
[323330926,1713901844502,-500.0,0.00012876,2]
[323330928,1713901844511,-500.0,0.00012876,2]
[323330930,1713901844521,-500.0,0.00012876,2]
[323330932,1713901844530,-5471.02,0.00012876,2]
[323330934,1713901844539,-396.5,0.00012876,2]
[323330935,1713901844548,-500.0,0.00012876,2]
[323330937,1713901844557,-500.0,0.00012876,2]
[323330939,1713901844566,-577.2,0.00012876,2]
[323330941,1713901844575,-500.0,0.00012876,2]
[323330943,1713901844584,-250.98,0.00012876,2]
[323330945,1713901844593,-500.0,0.00012876,2]
[323330947,1713901844602,-500.0,0.00012876,2]
[323330949,1713901844611,-294.30357355,0.00012877,5]
[323330951,1713901844620,-500.0,0.00012877,2]
[323330953,1713901844633,-500.0,0.00012877,2]
[323330954,1713901844642,-500.0,0.00012877,2]
[323330956,1713901844651,-500.0,0.00012877,2]
[323330958,1713901844660,-500.0,0.00012877,2]
[323330960,1713901844669,-500.0,0.00012877,2]
[323330962,1713901844679,-500.0,0.00012877,2]
[323330964,1713901844688,-500.0,0.00012877,2]
[323330967,1713901844698,-500.0,0.00012877,2]
[323330969,1713901844710,-509.99,0.00012877,2]
[323330971,1713901844720,-518.31464549,0.00012877,2]
[323330973,1713901844728,-500.0,0.00012877,2]
[323330975,1713901844737,-500.0,0.00012877,2]
[323330977,1713901844747,-500.0,0.00012877,2]
[323330978,1713901844757,-500.0,0.00012877,2]
[323330980,1713901844766,-500.0,0.00012877,2]
[323330982,1713901844775,-500.0,0.00012877,2]
[323330985,1713901844784,-500.0,0.00012877,2]
[323330987,1713901844793,-500.0,0.00012877,2]
[323330989,1713901844802,-443.33,0.00012877,2]
[323330991,1713901844812,-500.0,0.00012877,2]
[323330993,1713901844821,-356.34,0.00012877,2]
[323330995,1713901844830,-500.0,0.00012877,2]
[323330997,1713901844839,-494.78096413,0.00012877,2]
[323330999,1713901844848,-500.0,0.00012877,2]
[323331001,1713901844857,-550.25,0.00012877,2]
[323331003,1713901844866,-500.0,0.00012877,2]
[323331005,1713901844876,-500.0,0.00012877,2]
[323331007,1713901844885,-502.28048945,0.00012877,2]
[323331009,1713901844894,-500.49687165,0.00012877,2]
[323331011,1713901844903,-500.0,0.00012877,2]
[323331013,1713901844912,-500.0,0.00012877,2]
[323331015,1713901844921,-500.0,0.00012877,2]
[323331017,1713901844930,-500.0,0.00012877,2]
[323331019,1713901844939,-500.0,0.00012877,2]
[323331021,1713901844947,-506.19804022,0.00012877,2]
[323331023,1713901844957,-500.0,0.00012877,2]
[323331025,1713901844965,-500.0,0.00012877,2]
[323331027,1713901844975,-500.0,0.00012877,2]
[323331029,1713901844983,-500.0,0.00012877,2]
[323331031,1713901844992,-500.0,0.00012877,2]
[323331033,1713901845001,-543.02,0.00012877,2]
[323331035,1713901845011,-500.0,0.00012877,2]
[323331037,1713901845020,-500.0,0.00012877,2]
[323331039,1713901845029,-500.0,0.00012877,2]
[323331041,1713901845038,-500.0,0.00012877,2]
[323331043,1713901845046,-293.53057662,0.00012877,2]
[323331045,1713901845056,-500.0,0.00012877,2]
[323331047,1713901845065,-500.0,0.00012877,2]
[323331049,1713901845074,-500.0,0.00012877,2]
[323331051,1713901845083,-500.0,0.00012877,2]
[323331053,1713901845091,-504.77474163,0.00012877,2]
[323331055,1713901845101,-500.0,0.00012877,2]
[323331057,1713901845109,-500.0,0.00012877,2]
[323331059,1713901845118,-500.0,0.00012877,2]
[323331061,1713901845128,-500.0,0.00012877,2]
[323331063,1713901845137,-500.0,0.00012877,2]
[323331065,1713901845146,-500.0,0.00012877,2]
[323331067,1713901845155,-500.0,0.00012877,2]
[323331069,1713901845164,-500.0,0.00012877,2]
[323331071,1713901845173,-500.0,0.00012877,2]
[323331073,1713901845182,-500.0,0.00012877,2]
[323331075,1713901845191,-275.19600973,0.00012877,2]
[323331077,1713901845200,-500.0,0.00012877,2]
[323331079,1713901845208,-500.0,0.00012877,2]
[323331081,1713901845217,-500.0,0.00012877,2]
[323331083,1713901845226,-500.0,0.00012877,2]
[323331084,1713901845235,-366.99767048,0.00012877,2]
[323331085,1713901845244,-500.49764632,0.00012877,2]
[323331086,1713901845254,-500.0,0.00012877,2]
[323331087,1713901845263,-500.0,0.00012877,2]
[323331088,1713901845273,-150.48399934,0.00012877,2]
[323331089,1713901845282,-500.0,0.00012877,2]
[323331090,1713901845290,-500.0,0.00012877,2]
[323331091,1713901845299,-500.0,0.00012877,2]
[323331093,1713901845308,-500.0,0.00012877,2]
[323331095,1713901845317,-501.03001252,0.00012877,2]
[323331097,1713901845326,-227.60687317,0.00012877,2]
[323331099,1713901845335,-500.99106828,0.00012877,2]
[323331101,1713901845344,-500.0,0.00012877,2]
[323331102,1713901845353,-504.10925535,0.00012877,2]
[323331105,1713901845362,-500.0,0.00012877,2]
[323331106,1713901845371,-500.0,0.00012877,2]
[323331108,1713901845380,-500.0,0.00012877,2]
[323331110,1713901845389,-500.0,0.00012877,2]
[323331112,1713901845398,-500.0,0.00012877,2]
[323331114,1713901845408,-526.39219186,0.00012877,2]
[323331116,1713901845417,-500.0,0.00012877,2]
[323331118,1713901845426,-500.0,0.00012877,2]
[323331120,1713901845435,-503.54199264,0.00012877,2]
[323331123,1713901845444,-152.297502,0.00012877,2]
[323331125,1713901845454,-166.73822005,0.00012877,2]
[323331127,1713901845463,-500.0,0.00012877,2]
[323331129,1713901845472,-500.0,0.00012877,2]
[323331131,1713901845481,-500.0,0.00012877,2]
[323331132,1713901845490,-500.0,0.00012877,2]
[323331133,1713901845499,-500.0,0.00012877,2]
[323331134,1713901845508,-500.93715424,0.00012877,2]
[323331135,1713901845518,-500.0,0.00012877,2]
[323331136,1713901845526,-500.0,0.00012877,2]
[323331137,1713901845535,-500.0,0.00012877,2]
[323331138,1713901845545,-500.0,0.00012877,2]
[323331139,1713901845554,-500.44533309,0.00012877,2]
[323331140,1713901845563,-501.80718412,0.00012877,2]
[323331141,1713901845572,-502.35711965,0.00012877,2]
[323331142,1713901845581,-500.0,0.00012877,2]
[323331143,1713901845590,-503.31770367,0.00012877,2]
[323331144,1713901845600,-500.0,0.00012877,2]
[323331145,1713901845609,-500.0,0.00012877,2]
[323331146,1713901845619,-500.0,0.00012877,2]
[323331147,1713901845632,-500.0,0.00012877,2]
[323331148,1713901845642,-195.12,0.00012877,2]
[323331149,1713901845651,-500.0,0.00012877,2]
[323331150,1713901845660,-504.39702051,0.00012877,2]
[323331151,1713901845670,-500.0,0.00012877,2]
[323331152,1713901845679,-500.0,0.00012877,2]
[323331153,1713901845687,-500.0,0.00012877,2]
[323331154,1713901845697,-500.0,0.00012877,2]
[323331155,1713901845706,-501.84892442,0.00012877,2]
[323331156,1713901845716,-216.65,0.00012877,2]
[323331157,1713901845726,-500.0,0.00012877,2]
[323331158,1713901845735,-500.0,0.00012877,2]
[323331159,1713901845744,-500.0,0.00012877,2]
[323331160,1713901845754,-625.26588897,0.00012877,2]
[323331161,1713901845764,-500.0,0.00012877,2]
[323331162,1713901845773,-525.83150384,0.00012877,2]
[323331163,1713901845782,-500.0,0.00012877,2]
[323331164,1713901845792,-500.0,0.00012877,2]
[323331165,1713901845801,-500.0,0.00012877,2]
[323331166,1713901845811,-500.0,0.00012877,2]
[323331167,1713901845820,-500.0,0.00012877,2]
[323331168,1713901845830,-548.63995003,0.00012877,2]
[323331169,1713901845839,-500.0,0.00012877,2]
[323331170,1713901845848,-500.0,0.00012877,2]
[323331171,1713901845857,-500.0,0.00012877,2]
[323331172,1713901845867,-508.07850548,0.00012877,2]
[323331173,1713901845878,-500.0,0.00012877,2]
[323331174,1713901845887,-500.0,0.00012877,2]
[323331175,1713901845897,-503.80902002,0.00012877,2]
[323331176,1713901845906,-503.24586189,0.00012877,2]
[323331177,1713901845915,-500.0,0.00012877,2]
[323331178,1713901845925,-500.0,0.00012877,2]
[323331179,1713901845934,-501.50915921,0.00012877,2]
[323331180,1713901845943,-500.0,0.00012877,2]
[323331181,1713901845952,-502.65488263,0.00012877,2]
[323331182,1713901845961,-503.35943438,0.00012877,2]
[323331183,1713901845970,-505.83583114,0.00012877,2]
[323331184,1713901845979,-500.0,0.00012877,2]
[323331185,1713901845988,-500.0,0.00012877,2]
[323331186,1713901845997,-500.0,0.00012877,2]
[323331187,1713901846006,-500.0,0.00012877,2]
[323331188,1713901846015,-500.0,0.00012877,2]
[323331189,1713901846024,-501.28615798,0.00012877,2]
[323331190,1713901846033,-500.0,0.00012877,2]
[323331191,1713901846043,-500.0,0.00012877,2]
[323331192,1713901846052,-500.0,0.00012877,2]
[323331193,1713901846062,-500.0,0.00012877,2]
[323331194,1713901846071,-500.0,0.00012877,2]
[323331195,1713901846080,-500.0,0.00012877,2]
[323331196,1713901846091,-500.0,0.00012877,2]
[323331197,1713901846100,-507.58169904,0.00012877,2]
[323331198,1713901846109,-500.0,0.00012877,2]
[323331199,1713901846118,-500.0,0.00012877,2]
[323331200,1713901846131,-505.9854308,0.00012877,2]
[323331201,1713901846140,-629.41223947,0.00012877,2]
[323331202,1713901846149,-501.82531678,0.00012877,2]
[323331203,1713901846158,-500.0,0.00012877,2]
[323331204,1713901846167,-2002.35626629,0.00012877,2]
[323331205,1713901846176,-505.15724034,0.00012877,2]
[323331206,1713901846185,-500.73600101,0.00012877,2]
[323331207,1713901846194,-500.0,0.00012877,2]
[323331208,1713901846203,-500.0,0.00012877,2]
[323331209,1713901846212,-498.11933615,0.00012877,2]
[323331210,1713901846221,-500.0,0.00012877,2]
[323331211,1713901846230,-500.0,0.00012877,2]
[323331212,1713901846239,-500.0,0.00012877,2]
[323331213,1713901846248,-500.0,0.00012877,2]
[323331214,1713901846258,-876.19,0.00012877,2]
[323331215,1713901846267,-500.0,0.00012877,2]
[323331216,1713901846276,-503.19920354,0.00012877,2]
[323331217,1713901846285,-500.0,0.00012877,2]
[323331218,1713901846295,-500.0,0.00012877,2]
[323331219,1713901846303,-503.34104853,0.00012877,2]
[323331220,1713901846313,-500.0,0.00012877,2]
[323331221,1713901846322,-238.86270938,0.00012877,2]
[323331222,1713901846331,-500.0,0.00012877,2]
[323331223,1713901846340,-500.0,0.00012877,2]
[323331224,1713901846349,-500.0,0.00012877,2]
[323331225,1713901846359,-500.0,0.00012877,2]
[323331226,1713901846368,-500.0,0.00012877,2]
[323331227,1713901846379,-500.0,0.00012877,2]
[323331228,1713901846388,-500.0,0.00012877,2]
[323331229,1713901846397,-500.0,0.00012877,2]
[323331230,1713901846407,-500.0,0.00012877,2]
[323331231,1713901846417,-500.0,0.00012877,2]
[323331232,1713901846426,-500.0,0.00012877,2]
[323331233,1713901846436,-500.0,0.00012877,2]
[323331234,1713901846445,-500.0,0.00012877,2]
[323331235,1713901846454,-500.0,0.00012877,2]
[323331236,1713901846464,-276.23467757,0.00012877,2]
[323331237,1713901846474,-500.0,0.00012877,2]
[323331238,1713901846483,-500.0,0.00012877,2]
[323331239,1713901846493,-525.07,0.00012877,2]
[323331240,1713901846685,-500.0,0.00012877,2]
[323331241,1713901846695,-500.0,0.00012877,2]
[323331242,1713901846704,-500.0,0.00012877,2]
[323331243,1713901846714,-500.0,0.00012877,2]
[323331244,1713901846724,-500.0,0.00012877,2]
[323331245,1713901846735,-326.01680935,0.00012877,2]
[323331246,1713901846744,-216.23990969,0.00012877,2]
[323331247,1713901846753,-574.7562363,0.00012877,2]
[323331248,1713901846763,-500.0,0.00012877,2]
[323331249,1713901846772,-297.44395772,0.00012877,2]
[323331250,1713901846781,-500.0,0.00012877,2]
[323331251,1713901846791,-500.0,0.00012877,2]
[323331252,1713901846800,-500.0,0.00012877,2]
[323331253,1713901846810,-500.0,0.00012877,2]
[323331254,1713901846819,-563.48753917,0.00012877,2]
[323331255,1713901846829,-619.14,0.00012877,2]
[323331256,1713901846838,-500.0,0.00012877,2]
[323331257,1713901846847,-500.0,0.00012877,2]
[323331258,1713901846856,-570.86,0.00012877,2]
[323331259,1713901846866,-500.0,0.00012877,2]
[323331260,1713901846876,-506.57914626,0.00012877,2]
[323331261,1713901846887,-500.0,0.00012877,2]
[323331262,1713901846897,-519.69525324,0.00012877,2]
[323331263,1713901846905,-500.0,0.00012877,2]
[323331264,1713901846915,-500.0,0.00012877,2]
[323331265,1713901846924,-500.0,0.00012877,2]
[323331266,1713901846933,-158.46,0.00012877,2]
[323331267,1713901846942,-606.6,0.00012877,2]
[323331268,1713901846951,-500.0,0.00012877,2]
[323331269,1713901846960,-629.68754361,0.00012877,2]
[323331270,1713901846970,-500.0,0.00012877,2]
[323331271,1713901846979,-513.08883636,0.00012877,2]
[323331272,1713901846989,-500.0,0.00012877,2]
[323331273,1713901846998,-500.0,0.00012877,2]
[323331274,1713901847008,-511.64580188,0.00012877,2]
[323331275,1713901847017,-504.2168565,0.00012877,2]
[323331276,1713901847027,-81.94230455,0.00012877,2]
[323331277,1713901847047,-418.05769545,0.00012877,2]
[323331278,1713901847056,-500.0,0.00012877,2]
[323331279,1713901847066,-512.89631955,0.00012877,2]
[323331280,1713901847075,-500.0,0.00012877,2]
[323331281,1713901847085,-70.921745,0.00012877,2]
[323331282,1713901847116,-429.078255,0.00012877,2]
[323331283,1713901847128,-500.0,0.00012877,2]
[323331284,1713901847137,-500.0,0.00012877,2]
[323331285,1713901847146,-139.29081527,0.00012877,2]
[323331286,1713901847528,-360.70918473,0.00012877,2]
[323331287,1713901847538,-139.29081527,0.00012877,2]
[323331288,1713901847570,-360.70918473,0.00012877,2]
[323331289,1713901847579,-500.0,0.00012877,2]
[323331290,1713901847588,-500.0,0.00012877,2]
[323331291,1713901847598,-500.0,0.00012877,2]
[323331292,1713901847607,-500.0,0.00012877,2]
[323331293,1713901847616,-500.0,0.00012877,2]
[323331294,1713901847628,-500.0,0.00012877,2]
[323331295,1713901847640,-500.0,0.00012877,2]
[323331296,1713901847649,-500.0,0.00012877,2]
[323331297,1713901847658,-500.0,0.00012877,2]
[323331298,1713901847668,-417.90305662,0.00012877,2]
[323331299,1713901847678,-500.0,0.00012877,2]
[323331300,1713901847687,-500.0,0.00012877,2]
[323331301,1713901847696,-323.15403618,0.00012877,2]
[323331302,1713901847706,-500.0,0.00012877,2]
[323331303,1713901847716,-500.0,0.00012877,2]
[323331304,1713901847725,-500.0,0.00012877,2]
[323331305,1713901847736,-500.0,0.00012877,2]
[323331306,1713901847745,-500.0,0.00012877,2]
[323331307,1713901847755,-500.0,0.00012877,2]
[323331308,1713901847765,-500.0,0.00012877,2]
[323331309,1713901847774,-500.0,0.00012877,2]
[323331310,1713901847783,-500.0,0.00012877,2]
[323331311,1713901847792,-500.0,0.00012877,2]
[323331312,1713901847802,-500.0,0.00012877,2]
[323331313,1713901847811,-500.0,0.00012877,2]
[323331314,1713901847821,-500.0,0.00012877,2]
[323331315,1713901847830,-192.39387137,0.00012877,2]
[323331316,1713901847841,-500.0,0.00012877,2]
[323331317,1713901847850,-500.0,0.00012877,2]
[323331318,1713901847861,-503.93,0.00012877,2]
[323331319,1713901847871,-500.0,0.00012877,2]
[323331320,1713901847883,-500.0,0.00012877,2]
[323331321,1713901847892,-361.95,0.00012877,2]
[323331322,1713901847902,-1099.84,0.00012877,2]
[323331323,1713901847911,-500.0,0.00012877,2]
[323331324,1713901847920,-500.0,0.00012877,2]
[323331325,1713901847930,-500.0,0.00012877,2]
[323331326,1713901847941,-162.34861419,0.00012877,2]
[323331327,1713901848154,-337.65138581,0.00012877,2]
[323331328,1713901848163,-383.39150634,0.00012877,2]
[323331329,1713901848172,-500.0,0.00012877,2]
[323331330,1713901848181,-17.16784781,0.00012877,2]
[323331331,1713901848196,-251.98802002,0.00012877,2]
[323331332,1713901848410,-490.5858,0.00011555,2]
[323331334,1713901955868,49.4142,9.975e-05,2]
[323331335,1713901955889,150.0,9.975e-05,2]
[323331336,1713901955910,150.0,9.975e-05,2]
[323331337,1713901955931,150.0,9.975e-05,2]
[323331338,1713901955951,150.0,9.975e-05,2]
[323331339,1713901956455,150.0,9.975e-05,2]
[323331340,1713901956480,150.0,9.975e-05,2]
[323331341,1713901956502,53.1258,9.975e-05,2]
[323331349,1713902353585,150.0,0.00011,2]
[323331350,1713902353606,150.0,0.00011,2]
[323331351,1713902353628,150.0,0.00011,2]
[323331352,1713902353648,150.0,0.00011,2]
[323331353,1713902353669,150.0,0.00011,2]
[323331354,1713902353690,150.0,0.00011,2]
[323331355,1713902353712,150.0,0.00011,2]
[323331356,1713902353733,150.0,0.00011,2]
[323331357,1713902353755,150.0,0.00011,2]
[323331358,1713902353776,150.0,0.00011,2]
[323331359,1713902353804,150.0,0.00011,2]
[323331360,1713902353826,150.0,0.00011,2]
[323331361,1713902353849,150.0,0.00011,2]
[323331362,1713902353874,150.0,0.00011,2]
[323331363,1713902353894,150.0,0.00011,2]
[323331364,1713902353917,150.0,0.00011,2]
[323331365,1713902353939,150.0,0.00011,2]
[323331366,1713902353959,150.0,0.00011,2]
[323331367,1713902353980,150.0,0.00011,2]
[323331368,1713902354001,150.0,0.00011,2]
[323331369,1713902354021,150.0,0.00011,2]
[323331370,1713902354046,150.0,0.00011,2]
[323331371,1713902354068,196.81004876,0.00011,2]
[323331372,1713902354090,996503.18995124,0.00011,2]
[323331373,1713902411116,3750.0,9.975e-05,2]
[323331374,1713902520383,150.0,9.131e-05,2]
[323331375,1713902520405,150.0,9.131e-05,2]
[323331376,1713902520427,150.0,9.131e-05,2]
[323331377,1713902520448,150.0,9.131e-05,2]
[323331378,1713902520468,150.0,9.131e-05,2]
[323331379,1713902520488,150.0,9.131e-05,2]
[323331380,1713902520509,150.0,9.131e-05,2]
[323331381,1713902520529,49.69,9.131e-05,2]
[323331382,1713902535301,100.31,9.975e-05,2]
[323331383,1713902535322,166.33465607,9.975e-05,2]
[323331384,1713902546079,2017.77,0.00010834,2]
[323331385,1713902549152,900.0,9.975e-05,2]
[323331392,1713902609511,165.86,0.0001076,2]
[323331393,1713902609737,165.86,0.00010814,2]
[323331394,1713902616532,250.0,0.0001076,2]
[323331395,1713902703101,194.03700996,0.00010942,2]
[323331398,1713902707468,13162.38,0.00010871,2]
[323331399,1713902726661,490.38,0.00010871,2]
[323331434,1713902909514,9099.8,0.00010789,2]
[323331495,1713902955072,157.25440059,0.0001101,2]
[323331496,1713902956484,710.12510258,0.0001101,2]
[323331529,1713902958602,202.33481747,0.0001101,2]
[323331530,1713902958966,4322.85909605,0.0001101,2]
[323331531,1713902963423,526.93689436,0.0001101,2]
[323331532,1713902964781,761.31,0.00010904,2]
[323331533,1713902965000,761.31,0.00010934,2]
[323331549,1713902965383,761.31,0.00010964,2]
[323331551,1713902965646,761.31,0.00010994,2]
[323331552,1713902966212,10567.35658238,0.0001101,2]
[323331553,1713902966547,3382.95519327,0.0001101,2]
[323331554,1713902966982,343.3536616,0.0001101,2]
[323331556,1713902969065,4583.44785109,0.0001101,2]
[323331557,1713902970161,967.65652118,0.0001101,2]
[323331558,1713902976609,155.0,0.0001101,2]
[323331560,1713902979355,1351.61703,0.0001101,2]
[323331561,1713902985461,4729.32229821,0.0001101,2]
[323331562,1713902985943,207.85411425,0.0001101,2]
[323331563,1713902993561,1060.80176792,0.0001101,2]
[323331564,1713902996020,1044.7,8.603e-05,2]
[323331565,1713902996414,1044.7,0.00010867,2]
[323331566,1713902998022,1994.86165644,0.0001101,2]
[323331567,1713902999536,363.24868321,0.0001101,2]
[323331568,1713903001509,3413.36288726,0.0001101,2]
[323331569,1713903003056,236.75400222,0.0001101,2]
[323331571,1713903008421,267.45429934,0.0001101,2]
[323331572,1713903013066,565.4116933,0.0001101,2]
[323331573,1713903015072,153.76,0.00010554,2]
[323331574,1713903019345,372.19,0.00010539,2]
[323331575,1713903022551,418.11,0.00010539,2]
[323331576,1713903022833,62208.9843963,0.0001101,2]
[323331577,1713903025038,500.0,0.00010541,2]
[323331581,1713903029844,1983.86408087,0.0001101,2]
[323331596,1713903031681,-1268.76382903,0.00011011,2]
[323331597,1713903031693,-1700.0,0.00011011,2]
[323331598,1713903031829,-5318.28438985,0.00011011,2]
[323331599,1713903031859,-700.08093092,0.00011011,2]
[323331600,1713903031870,-347.96815075,0.00011011,2]
[323331606,1713903034348,1983.86408087,0.0001101,2]
[323331628,1713903038155,-1986.0642,0.00011011,2]
[323331629,1713903038168,-643.69,0.00011011,2]
[323331630,1713903038182,-10510.64443999,0.00011011,2]
[323331631,1713903038196,-1057.57328384,0.00011011,2]
[323331632,1713903038212,-2534.27766681,0.00011011,2]
[323331633,1713903038225,-412.98097719,0.00011011,2]
[323331635,1713903038239,-1489.04680945,0.00011011,2]
[323331637,1713903038253,-610.92971177,0.00011011,2]
[323331638,1713903038267,-515.63211921,0.00011011,2]
[323331640,1713903038280,-323.01463359,0.00011011,2]
[323331642,1713903038293,-5712.23958641,0.00011011,2]
[323331644,1713903038308,-126.13385324,0.00011011,2]
[323331646,1713903038320,-155.0,0.00011012,2]
[323331648,1713903038331,-781.35828446,0.00011012,2]
[323331649,1713903038343,-150.0,0.00011013,2]
[323331651,1713903038354,-150.0,0.00011013,2]
[323331653,1713903038364,-761.31,0.00011023,2]
[323331655,1713903038376,-394.9278623,0.00011027,2]
[323331657,1713903038391,-2876.07417415,0.00011027,2]
[323331658,1713903038401,-372.79367598,0.00011053,2]
[323331660,1713903038411,-761.31,0.00011053,2]
[323331662,1713903038422,-761.31,0.00011083,2]